[Event "*** SCC Grand Prix: Titled Tuesday Blitz"]
[Site "Chess.com"]
[Date "2020.09.08"]
[Round "3"]
[White "enriquebutti"]
[Black "MariaFominykh"]
[Result "0-1"]
[WhiteElo "1813"]
[BlackElo "2350"]
[TimeControl "180+1"]
[EndTime "10:24:40 PDT"]
[Termination "MariaFominykh won by resignation"]

1. d4 {[%clk 0:02:59.6]} 1... d6 {[%clk 0:03:00]} 2. c4 {[%clk 0:02:58.6]} 2...
e5 {[%clk 0:03:00.1]} 3. Nc3 {[%clk 0:02:55.6]} 3... exd4 {[%clk 0:02:58.9]} 4.
Qxd4 {[%clk 0:02:55.2]} 4... Nc6 {[%clk 0:02:59.4]} 5. Qd2 {[%clk 0:02:54.7]}
5... Nf6 {[%clk 0:02:59.5]} 6. g3 {[%clk 0:02:54]} 6... g6 {[%clk 0:02:57.4]} 7.
Bg2 {[%clk 0:02:53.1]} 7... Bg7 {[%clk 0:02:57.5]} 8. Nh3 {[%clk 0:02:48.4]}
8... O-O {[%clk 0:02:56.8]} 9. b3 {[%clk 0:02:47.3]} 9... Ne4 {[%clk 0:02:43.9]}
10. Bxe4 {[%clk 0:02:45.8]} 10... Bxh3 {[%clk 0:02:41.6]} 11. Bb2 {[%clk
0:02:45.4]} 11... Re8 {[%clk 0:02:38.6]} 12. Bf3 {[%clk 0:02:42.3]} 12... Nd4
{[%clk 0:02:26.4]} 13. Ne4 {[%clk 0:02:22.8]} 13... Nxf3+ {[%clk 0:02:17.7]} 14.
exf3 {[%clk 0:02:21.4]} 14... Bxb2 {[%clk 0:02:10.6]} 15. Qxb2 {[%clk
0:02:19.8]} 15... f5 {[%clk 0:02:09.5]} 0-1

[Event "*** SCC Grand Prix: Titled Tuesday Blitz"]
[Site "Chess.com"]
[Date "2020.09.08"]
[Round "3"]
[White "ecwinslow"]
[Black "Synctel"]
[Result "1-0"]
[WhiteElo "2302"]
[BlackElo "1988"]
[TimeControl "180+1"]
[EndTime "10:25:11 PDT"]
[Termination "ecwinslow won by resignation"]

1. e4 {[%clk 0:03:00.9]} 1... e6 {[%clk 0:02:59]} 2. d4 {[%clk 0:03:00.4]} 2...
d5 {[%clk 0:02:53.8]} 3. Nd2 {[%clk 0:02:59.7]} 3... Nc6 {[%clk 0:02:52.8]} 4.
Ngf3 {[%clk 0:02:57.7]} 4... Nf6 {[%clk 0:02:49.8]} 5. e5 {[%clk 0:02:57.5]}
5... Nd7 {[%clk 0:02:49.7]} 6. c3 {[%clk 0:02:56.7]} 6... f6 {[%clk 0:02:43.9]}
7. Bb5 {[%clk 0:02:46.3]} 7... Be7 {[%clk 0:02:32.1]} 8. exf6 {[%clk 0:02:41.1]}
8... Bxf6 {[%clk 0:02:30.3]} 9. O-O {[%clk 0:02:41]} 9... O-O {[%clk 0:02:27.9]}
10. Re1 {[%clk 0:02:36.9]} 10... e5 {[%clk 0:02:02.9]} 11. Bxc6 {[%clk
0:02:34.9]} 11... bxc6 {[%clk 0:02:03.2]} 12. dxe5 {[%clk 0:02:30.5]} 12... Nxe5
{[%clk 0:01:50.9]} 13. Nxe5 {[%clk 0:02:25.6]} 13... Bxe5 {[%clk 0:01:50.1]} 14.
Rxe5 {[%clk 0:02:23.3]} 14... Qf6 {[%clk 0:01:49.5]} 15. Nf3 {[%clk 0:02:20.1]}
15... Bg4 {[%clk 0:01:49.2]} 16. Re3 {[%clk 0:01:57.7]} 1-0

[Event "*** SCC Grand Prix: Titled Tuesday Blitz"]
[Site "Chess.com"]
[Date "2020.09.08"]
[Round "3"]
[White "bocah_sakit"]
[Black "vvg2"]
[Result "1-0"]
[WhiteElo "2656"]
[BlackElo "2266"]
[TimeControl "180+1"]
[EndTime "10:25:21 PDT"]
[Termination "bocah_sakit won by resignation"]

1. e4 {[%clk 0:03:00.9]} 1... c5 {[%clk 0:03:00.1]} 2. Nf3 {[%clk 0:03:00.7]}
2... Nc6 {[%clk 0:03:00.1]} 3. Bb5 {[%clk 0:03:00.5]} 3... g6 {[%clk 0:03:00.1]}
4. O-O {[%clk 0:03:00.2]} 4... Bg7 {[%clk 0:03:00]} 5. c3 {[%clk 0:03:00.7]}
5... Nf6 {[%clk 0:02:59.7]} 6. Re1 {[%clk 0:03:01.1]} 6... O-O {[%clk
0:02:57.8]} 7. h3 {[%clk 0:03:01.3]} 7... d5 {[%clk 0:02:54.8]} 8. e5 {[%clk
0:03:00.8]} 8... Nd7 {[%clk 0:02:52.7]} 9. d4 {[%clk 0:03:00.3]} 9... Qb6 {[%clk
0:02:51]} 10. Bf1 {[%clk 0:02:57.1]} 10... f6 {[%clk 0:02:48.5]} 11. e6 {[%clk
0:02:54.6]} 11... Ndb8 {[%clk 0:02:47.4]} 12. dxc5 {[%clk 0:02:50.8]} 12... Qxc5
{[%clk 0:02:46.9]} 13. Bf4 {[%clk 0:02:51.2]} 13... Na6 {[%clk 0:02:42.3]} 14.
b4 {[%clk 0:02:46.7]} 14... Naxb4 {[%clk 0:02:33]} 15. cxb4 {[%clk 0:02:47.6]}
15... Nxb4 {[%clk 0:02:33.8]} 16. Nbd2 {[%clk 0:02:38.2]} 16... g5 {[%clk
0:02:29.1]} 17. Be3 {[%clk 0:02:34]} 17... Qd6 {[%clk 0:02:24.8]} 18. Nd4 {[%clk
0:02:32.8]} 18... Nc6 {[%clk 0:02:21.7]} 19. Nb5 {[%clk 0:02:28.9]} 19... Qd8
{[%clk 0:02:18.8]} 20. Nb3 {[%clk 0:02:20.8]} 20... a6 {[%clk 0:02:02.9]} 21.
N5d4 {[%clk 0:02:18.5]} 21... Ne5 {[%clk 0:02:03.1]} 22. Rc1 {[%clk 0:02:16.1]}
22... h6 {[%clk 0:02:03.2]} 23. a4 {[%clk 0:02:11.2]} 23... f5 {[%clk
0:02:03.1]} 24. a5 {[%clk 0:02:10.6]} 24... f4 {[%clk 0:02:02.7]} 25. Bd2 {[%clk
0:02:10]} 25... h5 {[%clk 0:02:01.4]} 26. Qxh5 {[%clk 0:02:08.8]} 1-0

[Event "*** SCC Grand Prix: Titled Tuesday Blitz"]
[Site "Chess.com"]
[Date "2020.09.08"]
[Round "3"]
[White "serhanberat_ozdemir"]
[Black "parnali1611"]
[Result "1-0"]
[WhiteElo "2476"]
[BlackElo "2152"]
[TimeControl "180+1"]
[EndTime "10:25:24 PDT"]
[Termination "serhanberat_ozdemir won by checkmate"]

1. e4 {[%clk 0:03:00.9]} 1... e5 {[%clk 0:02:59.9]} 2. Nf3 {[%clk 0:03:01.3]}
2... Nc6 {[%clk 0:03:00.5]} 3. d4 {[%clk 0:03:01.1]} 3... exd4 {[%clk
0:03:00.1]} 4. Bc4 {[%clk 0:03:01.8]} 4... Nf6 {[%clk 0:02:41.8]} 5. e5 {[%clk
0:03:01.8]} 5... d5 {[%clk 0:02:40.3]} 6. Bb5 {[%clk 0:03:02.3]} 6... Ne4 {[%clk
0:02:40.5]} 7. Nxd4 {[%clk 0:03:02.1]} 7... Bd7 {[%clk 0:02:41]} 8. Bxc6 {[%clk
0:03:02.3]} 8... bxc6 {[%clk 0:02:40.2]} 9. O-O {[%clk 0:03:02.9]} 9... Bc5
{[%clk 0:02:40.7]} 10. f3 {[%clk 0:03:03.2]} 10... Ng5 {[%clk 0:02:40.2]} 11. f4
{[%clk 0:03:01.7]} 11... Ne4 {[%clk 0:02:40.6]} 12. Be3 {[%clk 0:03:01]} 12...
Bb6 {[%clk 0:02:40.8]} 13. Nd2 {[%clk 0:02:57.9]} 13... f5 {[%clk 0:02:28.2]}
14. Nxe4 {[%clk 0:02:48.8]} 14... fxe4 {[%clk 0:02:22]} 15. f5 {[%clk 0:02:32]}
15... c5 {[%clk 0:02:11.7]} 16. Qh5+ {[%clk 0:02:27.4]} 16... Ke7 {[%clk
0:01:58.8]} 17. Bg5+ {[%clk 0:02:06.8]} 17... Kf8 {[%clk 0:01:52.9]} 18. Bxd8
{[%clk 0:02:03.8]} 18... cxd4 {[%clk 0:01:52.2]} 19. e6 {[%clk 0:02:00.8]} 19...
d3+ {[%clk 0:01:51.5]} 20. Kh1 {[%clk 0:02:00.5]} 20... Rxd8 {[%clk 0:01:44]}
21. Qf7# {[%clk 0:01:59.3]} 1-0

[Event "*** SCC Grand Prix: Titled Tuesday Blitz"]
[Site "Chess.com"]
[Date "2020.09.08"]
[Round "3"]
[White "Hypercar"]
[Black "Thjop"]
[Result "1-0"]
[WhiteElo "2421"]
[BlackElo "2634"]
[TimeControl "180+1"]
[EndTime "10:25:29 PDT"]
[Termination "Hypercar won by resignation"]

1. d4 {[%clk 0:03:00.9]} 1... d5 {[%clk 0:02:59.2]} 2. c4 {[%clk 0:02:59]} 2...
e5 {[%clk 0:02:59.2]} 3. dxe5 {[%clk 0:02:58.6]} 3... d4 {[%clk 0:03:00.1]} 4.
Nf3 {[%clk 0:02:59.4]} 4... Nc6 {[%clk 0:03:00]} 5. a3 {[%clk 0:03:00.3]} 5...
Be6 {[%clk 0:02:58.5]} 6. e3 {[%clk 0:02:59.7]} 6... dxe3 {[%clk 0:02:59.4]} 7.
Qxd8+ {[%clk 0:02:58.8]} 7... Rxd8 {[%clk 0:03:00.3]} 8. Bxe3 {[%clk 0:02:58.8]}
8... Nge7 {[%clk 0:03:00.7]} 9. Nbd2 {[%clk 0:02:40.7]} 9... Nf5 {[%clk
0:02:59.4]} 10. Bf4 {[%clk 0:02:39]} 10... h6 {[%clk 0:02:48]} 11. O-O-O {[%clk
0:02:31.9]} 11... g5 {[%clk 0:02:47.6]} 12. Bg3 {[%clk 0:02:30.1]} 12... Bg7
{[%clk 0:02:36.2]} 13. Be2 {[%clk 0:02:26.9]} 13... g4 {[%clk 0:02:22.4]} 14.
Nh4 {[%clk 0:02:22.9]} 14... Nfd4 {[%clk 0:02:20.7]} 15. Rhe1 {[%clk 0:02:18.2]}
15... Nxe2+ {[%clk 0:02:19.6]} 16. Rxe2 {[%clk 0:02:17.5]} 16... Nd4 {[%clk
0:02:17.5]} 17. Re3 {[%clk 0:02:12.8]} 17... h5 {[%clk 0:02:15.2]} 18. Bf4
{[%clk 0:02:05.5]} 18... Ke7 {[%clk 0:02:04.6]} 19. Bg5+ {[%clk 0:02:01.2]}
19... f6 {[%clk 0:02:00.3]} 20. Ng6+ {[%clk 0:01:58.5]} 20... Kf7 {[%clk
0:02:00.6]} 21. Nxh8+ {[%clk 0:01:57.7]} 21... Rxh8 {[%clk 0:01:57.2]} 22. Bxf6
{[%clk 0:01:54]} 22... Bxf6 {[%clk 0:01:58.1]} 23. exf6 {[%clk 0:01:54.3]} 23...
Kxf6 {[%clk 0:01:58.9]} 24. Ne4+ {[%clk 0:01:54.1]} 24... Ke5 {[%clk 0:01:56.9]}
25. Ng5+ {[%clk 0:01:51.6]} 25... Kf5 {[%clk 0:01:57.3]} 26. Rxd4 {[%clk
0:01:49.5]} 1-0

[Event "*** SCC Grand Prix: Titled Tuesday Blitz"]
[Site "Chess.com"]
[Date "2020.09.08"]
[Round "3"]
[White "snap_man"]
[Black "jucAxx"]
[Result "0-1"]
[WhiteElo "2292"]
[BlackElo "2052"]
[TimeControl "180+1"]
[EndTime "10:25:45 PDT"]
[Termination "jucAxx won by checkmate"]

1. e4 {[%clk 0:03:00.8]} 1... e6 {[%clk 0:03:00.3]} 2. d4 {[%clk 0:02:57.5]}
2... d5 {[%clk 0:03:00.5]} 3. Nd2 {[%clk 0:02:58.2]} 3... c5 {[%clk 0:02:59.9]}
4. Ngf3 {[%clk 0:02:56.1]} 4... a6 {[%clk 0:02:58.2]} 5. c3 {[%clk 0:02:52.3]}
5... cxd4 {[%clk 0:02:56.7]} 6. Nxd4 {[%clk 0:02:51.7]} 6... Nc6 {[%clk
0:02:57.1]} 7. Nxc6 {[%clk 0:02:45.5]} 7... bxc6 {[%clk 0:02:58]} 8. Bd3 {[%clk
0:02:45.3]} 8... Bd6 {[%clk 0:02:55.7]} 9. O-O {[%clk 0:02:43.5]} 9... Nf6
{[%clk 0:02:54.8]} 10. Re1 {[%clk 0:02:41.2]} 10... Qc7 {[%clk 0:02:53.1]} 11.
h3 {[%clk 0:02:38.9]} 11... O-O {[%clk 0:02:53.4]} 12. c4 {[%clk 0:02:34.5]}
12... Rd8 {[%clk 0:02:51.3]} 13. exd5 {[%clk 0:02:25.5]} 13... cxd5 {[%clk
0:02:48.5]} 14. cxd5 {[%clk 0:02:20.7]} 14... Bh2+ {[%clk 0:02:43.4]} 15. Kh1
{[%clk 0:02:18.5]} 15... Rxd5 {[%clk 0:02:43.6]} 16. Qe2 {[%clk 0:02:06.4]}
16... Bb7 {[%clk 0:02:41.5]} 17. Nf3 {[%clk 0:02:02.7]} 17... Bf4 {[%clk
0:02:34.2]} 18. Bxf4 {[%clk 0:01:48.1]} 18... Qxf4 {[%clk 0:02:35.1]} 19. Rad1
{[%clk 0:01:47.8]} 19... Rh5 {[%clk 0:02:24.5]} 20. Ng1 {[%clk 0:01:43.2]} 20...
Ng4 {[%clk 0:02:07.7]} 21. Nf3 {[%clk 0:01:32.9]} 21... Bxf3 {[%clk 0:02:00.5]}
22. Qxf3 {[%clk 0:01:31.9]} 22... Qh2# {[%clk 0:02:00.4]} 0-1

[Event "*** SCC Grand Prix: Titled Tuesday Blitz"]
[Site "Chess.com"]
[Date "2020.09.08"]
[Round "3"]
[White "MarcoRiehle"]
[Black "mishanick"]
[Result "0-1"]
[WhiteElo "2696"]
[BlackElo "3006"]
[TimeControl "180+1"]
[EndTime "10:25:50 PDT"]
[Termination "mishanick won by resignation"]

1. e4 {[%clk 0:03:00.8]} 1... c5 {[%clk 0:03:00.1]} 2. a3 {[%clk 0:02:59.1]}
2... Nc6 {[%clk 0:02:58.9]} 3. b4 {[%clk 0:02:59.2]} 3... Nf6 {[%clk 0:02:58.2]}
4. b5 {[%clk 0:02:59.6]} 4... Nd4 {[%clk 0:02:55.3]} 5. c3 {[%clk 0:02:59.7]}
5... Ne6 {[%clk 0:02:54.7]} 6. e5 {[%clk 0:02:50.5]} 6... Nd5 {[%clk 0:02:54.4]}
7. d4 {[%clk 0:02:35.3]} 7... cxd4 {[%clk 0:02:36.2]} 8. cxd4 {[%clk 0:02:35]}
8... Qa5+ {[%clk 0:02:29.4]} 9. Bd2 {[%clk 0:02:33.4]} 9... Qb6 {[%clk
0:02:29.9]} 10. Be3 {[%clk 0:02:29]} 10... Nxe3 {[%clk 0:02:28.7]} 11. fxe3
{[%clk 0:02:29.9]} 11... g6 {[%clk 0:02:26.4]} 12. Nf3 {[%clk 0:02:28.8]} 12...
Bh6 {[%clk 0:02:26.3]} 13. Qd3 {[%clk 0:02:28.1]} 13... O-O {[%clk 0:02:20.8]}
14. Nc3 {[%clk 0:02:28.5]} 14... d6 {[%clk 0:02:20.3]} 15. Be2 {[%clk
0:02:25.6]} 15... dxe5 {[%clk 0:02:10.8]} 16. Nxe5 {[%clk 0:02:26.5]} 16... f6
{[%clk 0:02:11.3]} 17. Nf3 {[%clk 0:02:25.9]} 17... Nc7 {[%clk 0:02:05.5]} 18.
O-O {[%clk 0:02:25.5]} 18... Bf5 {[%clk 0:02:05.4]} 19. Qc4+ {[%clk 0:02:25]}
19... Be6 {[%clk 0:02:05.2]} 20. Qd3 {[%clk 0:02:24.5]} 20... Rad8 {[%clk
0:02:03.2]} 21. a4 {[%clk 0:02:24.3]} 21... Nd5 {[%clk 0:01:52.2]} 22. a5 {[%clk
0:02:23.3]} 22... Qc7 {[%clk 0:01:50.9]} 23. Nxd5 {[%clk 0:02:22]} 23... Bxd5
{[%clk 0:01:50.5]} 24. Rac1 {[%clk 0:02:18.3]} 24... Qxa5 {[%clk 0:01:47.6]} 25.
Ra1 {[%clk 0:02:18.3]} 25... Qb6 {[%clk 0:01:46.4]} 26. Rfc1 {[%clk 0:02:14.7]}
26... e5 {[%clk 0:01:43.8]} 27. Qa3 {[%clk 0:02:10.3]} 27... exd4 {[%clk
0:01:36.5]} 28. Nxd4 {[%clk 0:02:11.2]} 28... Rfe8 {[%clk 0:01:36.2]} 0-1

[Event "*** SCC Grand Prix: Titled Tuesday Blitz"]
[Site "Chess.com"]
[Date "2020.09.08"]
[Round "3"]
[White "sergiochess83"]
[Black "Korchmar_Vasiliy"]
[Result "1-0"]
[WhiteElo "2835"]
[BlackElo "2604"]
[TimeControl "180+1"]
[EndTime "10:25:55 PDT"]
[Termination "sergiochess83 won by resignation"]

1. e4 {[%clk 0:03:00.9]} 1... c5 {[%clk 0:03:00.2]} 2. Nf3 {[%clk 0:03:00.6]}
2... d6 {[%clk 0:03:00.6]} 3. d4 {[%clk 0:03:00.1]} 3... cxd4 {[%clk 0:03:01.5]}
4. Nxd4 {[%clk 0:03:00.7]} 4... Nf6 {[%clk 0:03:02.2]} 5. Nc3 {[%clk 0:03:01]}
5... Nc6 {[%clk 0:03:02.7]} 6. Nd5 {[%clk 0:02:59.5]} 6... e6 {[%clk 0:02:24]}
7. Nxf6+ {[%clk 0:02:56.3]} 7... Qxf6 {[%clk 0:02:24.9]} 8. Nb5 {[%clk 0:02:56]}
8... Qd8 {[%clk 0:02:22.7]} 9. c4 {[%clk 0:02:48.3]} 9... a6 {[%clk 0:02:15.3]}
10. Nc3 {[%clk 0:02:47.6]} 10... Be7 {[%clk 0:02:15.9]} 11. Be3 {[%clk 0:02:46]}
11... O-O {[%clk 0:02:14.2]} 12. Be2 {[%clk 0:02:46.6]} 12... Bd7 {[%clk
0:02:02.3]} 13. O-O {[%clk 0:02:45.7]} 13... Rc8 {[%clk 0:02:02.1]} 14. Rc1
{[%clk 0:02:44.9]} 14... Ne5 {[%clk 0:02:02.1]} 15. b3 {[%clk 0:02:40.9]} 15...
Bc6 {[%clk 0:02:02.1]} 16. f4 {[%clk 0:02:39.4]} 16... Ng6 {[%clk 0:02:02.2]}
17. Bd3 {[%clk 0:02:34.9]} 17... Qa5 {[%clk 0:01:54.8]} 18. Qd2 {[%clk
0:02:14.2]} 18... Qa3 {[%clk 0:01:07.8]} 19. Nb1 {[%clk 0:02:04.3]} 1-0

[Event "*** SCC Grand Prix: Titled Tuesday Blitz"]
[Site "Chess.com"]
[Date "2020.09.08"]
[Round "3"]
[White "Ashedu66"]
[Black "Chessbard1972"]
[Result "1-0"]
[WhiteElo "2186"]
[BlackElo "2379"]
[TimeControl "180+1"]
[EndTime "10:26:06 PDT"]
[Termination "Ashedu66 won on time"]

1. d4 {[%clk 0:03:00.9]} 1... d5 {[%clk 0:02:58.9]} 2. c4 {[%clk 0:03:00.6]}
2... e6 {[%clk 0:02:58.8]} 3. Nf3 {[%clk 0:03:00.7]} 3... c5 {[%clk 0:02:58.8]}
4. e3 {[%clk 0:03:00.3]} 4... Nf6 {[%clk 0:02:57.5]} 5. Nc3 {[%clk 0:03:00.4]}
5... a6 {[%clk 0:02:57.1]} 6. cxd5 {[%clk 0:02:59]} 6... exd5 {[%clk 0:02:56.9]}
7. Bd3 {[%clk 0:02:58.4]} 7... Nc6 {[%clk 0:02:56]} 8. dxc5 {[%clk 0:02:57.2]}
8... Bxc5 {[%clk 0:02:55]} 9. h3 {[%clk 0:02:56.7]} 9... O-O {[%clk 0:02:54.5]}
10. O-O {[%clk 0:02:56.7]} 10... Qe7 {[%clk 0:02:53.9]} 11. Be2 {[%clk
0:02:55.6]} 11... Rd8 {[%clk 0:02:53.6]} 12. Re1 {[%clk 0:02:48.1]} 12... Bf5
{[%clk 0:02:51.8]} 13. b3 {[%clk 0:02:45.1]} 13... h6 {[%clk 0:02:48.7]} 14. Bb2
{[%clk 0:02:45]} 14... Rac8 {[%clk 0:02:47.5]} 15. Rc1 {[%clk 0:02:44.2]} 1-0

[Event "*** SCC Grand Prix: Titled Tuesday Blitz"]
[Site "Chess.com"]
[Date "2020.09.08"]
[Round "3"]
[White "ChadaevNikolay"]
[Black "RamyresCoelho"]
[Result "1-0"]
[WhiteElo "2811"]
[BlackElo "1778"]
[TimeControl "180+1"]
[EndTime "10:26:10 PDT"]
[Termination "ChadaevNikolay won by resignation"]

1. e4 {[%clk 0:03:00.9]} 1... c5 {[%clk 0:02:59.9]} 2. Ne2 {[%clk 0:02:59.4]}
2... Nc6 {[%clk 0:02:59]} 3. g3 {[%clk 0:02:58.7]} 3... d6 {[%clk 0:02:58.1]} 4.
Bg2 {[%clk 0:02:58.3]} 4... Nf6 {[%clk 0:02:58.5]} 5. O-O {[%clk 0:02:57.9]}
5... g6 {[%clk 0:02:56]} 6. c3 {[%clk 0:02:58]} 6... Bg7 {[%clk 0:02:56.4]} 7.
d4 {[%clk 0:02:58.6]} 7... cxd4 {[%clk 0:02:56]} 8. cxd4 {[%clk 0:02:59.2]} 8...
O-O {[%clk 0:02:55.8]} 9. Nbc3 {[%clk 0:02:58.9]} 9... a6 {[%clk 0:02:54.6]} 10.
h3 {[%clk 0:02:59]} 10... e5 {[%clk 0:02:51]} 11. Be3 {[%clk 0:02:57.1]} 11...
Nh5 {[%clk 0:02:47.3]} 12. Qd2 {[%clk 0:02:55.5]} 12... Bd7 {[%clk 0:02:44.6]}
13. Rfd1 {[%clk 0:02:55]} 13... Qc8 {[%clk 0:02:43.7]} 14. Kh2 {[%clk
0:02:52.8]} 14... exd4 {[%clk 0:02:41.4]} 15. Nxd4 {[%clk 0:02:52.3]} 15... Nxd4
{[%clk 0:02:41.2]} 16. Bxd4 {[%clk 0:02:52.1]} 16... Bxd4 {[%clk 0:02:38.3]} 17.
Qxd4 {[%clk 0:02:53]} 17... Be6 {[%clk 0:02:30.3]} 18. Qxd6 {[%clk 0:02:48.3]}
18... Rd8 {[%clk 0:02:28.6]} 19. Qb6 {[%clk 0:02:43.8]} 19... Rxd1 {[%clk
0:02:24.1]} 20. Rxd1 {[%clk 0:02:43.2]} 20... Qc6 {[%clk 0:02:22.2]} 21. Qxc6
{[%clk 0:02:43.2]} 21... bxc6 {[%clk 0:02:23.1]} 22. e5 {[%clk 0:02:43.9]} 22...
Rc8 {[%clk 0:02:18.6]} 23. Rd6 {[%clk 0:02:43.8]} 23... Bd5 {[%clk 0:02:09]} 24.
Nxd5 {[%clk 0:02:38.2]} 24... cxd5 {[%clk 0:02:09.9]} 25. Bxd5 {[%clk
0:02:38.6]} 25... Rc7 {[%clk 0:02:05.7]} 26. Rxa6 {[%clk 0:02:36.9]} 26... Kg7
{[%clk 0:02:05]} 27. Kg2 {[%clk 0:02:34.7]} 27... Re7 {[%clk 0:02:02.1]} 28. f4
{[%clk 0:02:30.8]} 28... Rc7 {[%clk 0:01:58.8]} 29. Rc6 {[%clk 0:02:30.6]} 29...
Ra7 {[%clk 0:01:54.1]} 30. Kf3 {[%clk 0:02:25.3]} 30... Ra5 {[%clk 0:01:51.2]}
31. Rd6 {[%clk 0:02:22.6]} 31... Rb5 {[%clk 0:01:48]} 32. g4 {[%clk 0:02:21]}
32... Nxf4 {[%clk 0:01:46]} 33. Kxf4 {[%clk 0:02:21.3]} 33... Rxb2 {[%clk
0:01:44.7]} 34. Rd7 {[%clk 0:02:21.6]} 34... Rf2+ {[%clk 0:01:42.9]} 35. Ke3
{[%clk 0:02:21.5]} 35... Rf1 {[%clk 0:01:40.3]} 36. Rxf7+ {[%clk 0:02:20.6]}
36... Rxf7 {[%clk 0:01:37.8]} 37. Bxf7 {[%clk 0:02:21.5]} 37... Kxf7 {[%clk
0:01:38.7]} 38. a4 {[%clk 0:02:22.2]} 38... Ke6 {[%clk 0:01:39.4]} 39. a5 {[%clk
0:02:23.1]} 39... Kxe5 {[%clk 0:01:40.3]} 40. a6 {[%clk 0:02:24]} 40... h5
{[%clk 0:01:36.5]} 41. a7 {[%clk 0:02:24.9]} 41... hxg4 {[%clk 0:01:35.8]} 42.
hxg4 {[%clk 0:02:25.8]} 42... g5 {[%clk 0:01:35.3]} 43. a8=Q {[%clk 0:02:26.7]}
1-0

[Event "*** SCC Grand Prix: Titled Tuesday Blitz"]
[Site "Chess.com"]
[Date "2020.09.08"]
[Round "3"]
[White "PoppingCheckmates"]
[Black "glebus008"]
[Result "1-0"]
[WhiteElo "2390"]
[BlackElo "2166"]
[TimeControl "180+1"]
[EndTime "10:26:18 PDT"]
[Termination "PoppingCheckmates won by resignation"]

1. Nf3 {[%clk 0:03:00.9]} 1... d5 {[%clk 0:02:56.7]} 2. b3 {[%clk 0:03:00.8]}
2... Nf6 {[%clk 0:02:54.4]} 3. Bb2 {[%clk 0:03:01.4]} 3... e6 {[%clk 0:02:54.1]}
4. d4 {[%clk 0:03:02]} 4... Be7 {[%clk 0:02:54.9]} 5. Nbd2 {[%clk 0:03:02.4]}
5... O-O {[%clk 0:02:55.7]} 6. c4 {[%clk 0:03:03]} 6... c5 {[%clk 0:02:52.2]} 7.
e3 {[%clk 0:03:02.2]} 7... Nc6 {[%clk 0:02:35.9]} 8. cxd5 {[%clk 0:03:01.9]}
8... exd5 {[%clk 0:02:33.2]} 9. Be2 {[%clk 0:03:01.9]} 9... Bg4 {[%clk 0:02:31]}
10. O-O {[%clk 0:03:01.7]} 10... Re8 {[%clk 0:02:27.3]} 11. a3 {[%clk
0:03:01.6]} 11... cxd4 {[%clk 0:02:26.6]} 12. Nxd4 {[%clk 0:03:00.9]} 12... Bxe2
{[%clk 0:02:24.8]} 13. Nxe2 {[%clk 0:02:59.3]} 13... Bd6 {[%clk 0:02:21.8]} 14.
Nf3 {[%clk 0:02:58.1]} 14... Ne4 {[%clk 0:02:19]} 15. g3 {[%clk 0:02:48.4]}
15... Bc5 {[%clk 0:02:06.7]} 16. Nf4 {[%clk 0:02:38.4]} 16... Nxf2 {[%clk
0:01:43.9]} 17. Kxf2 {[%clk 0:02:28.7]} 17... Bxe3+ {[%clk 0:01:41.5]} 18. Kg2
{[%clk 0:02:28.8]} 18... d4 {[%clk 0:01:39.2]} 19. Ne2 {[%clk 0:02:26.2]} 19...
d3 {[%clk 0:01:36.7]} 20. Nc1 {[%clk 0:02:22.6]} 20... Bxc1 {[%clk 0:01:33.1]}
21. Bxc1 {[%clk 0:02:22.3]} 21... Re2+ {[%clk 0:01:33.8]} 22. Rf2 {[%clk
0:02:20.3]} 22... Qf6 {[%clk 0:01:15.1]} 23. Ra2 {[%clk 0:02:12.9]} 23... Rxa2
{[%clk 0:01:03.2]} 24. Rxa2 {[%clk 0:02:13.8]} 24... Rd8 {[%clk 0:01:00.6]} 25.
Bg5 {[%clk 0:02:07.4]} 1-0

[Event "*** SCC Grand Prix: Titled Tuesday Blitz"]
[Site "Chess.com"]
[Date "2020.09.08"]
[Round "3"]
[White "Keures"]
[Black "aljado"]
[Result "1-0"]
[WhiteElo "2343"]
[BlackElo "2106"]
[TimeControl "180+1"]
[EndTime "10:26:22 PDT"]
[Termination "Keures won by resignation"]

1. d4 {[%clk 0:03:00.9]} 1... Nf6 {[%clk 0:02:58.5]} 2. c4 {[%clk 0:03:00.9]}
2... g6 {[%clk 0:02:57.9]} 3. Nc3 {[%clk 0:03:01.1]} 3... d5 {[%clk 0:02:57.8]}
4. cxd5 {[%clk 0:03:00.9]} 4... Nxd5 {[%clk 0:02:58.2]} 5. e4 {[%clk 0:03:01.8]}
5... Nxc3 {[%clk 0:02:57.8]} 6. bxc3 {[%clk 0:03:02.7]} 6... Bg7 {[%clk
0:02:57.7]} 7. Rb1 {[%clk 0:03:03.4]} 7... O-O {[%clk 0:02:57]} 8. Be3 {[%clk
0:03:04.3]} 8... c5 {[%clk 0:02:55.9]} 9. Qd2 {[%clk 0:03:04.8]} 9... Nc6 {[%clk
0:02:55.6]} 10. Nf3 {[%clk 0:03:04.3]} 10... Qa5 {[%clk 0:02:53.4]} 11. Rb5
{[%clk 0:03:01.1]} 11... Qa3 {[%clk 0:02:39.1]} 12. Rxc5 {[%clk 0:02:58.4]}
12... Bg4 {[%clk 0:02:31.6]} 13. Be2 {[%clk 0:02:55.9]} 13... e5 {[%clk
0:02:16.3]} 14. d5 {[%clk 0:02:49.3]} 14... Na5 {[%clk 0:02:07.7]} 15. O-O
{[%clk 0:02:30.1]} 15... b6 {[%clk 0:02:05.5]} 16. Rc7 {[%clk 0:02:26.6]} 16...
Rac8 {[%clk 0:02:04.3]} 17. Rxa7 {[%clk 0:02:22.5]} 17... Qxc3 {[%clk
0:02:00.4]} 18. Qxc3 {[%clk 0:02:20.3]} 18... Rxc3 {[%clk 0:02:00.9]} 19. Bxb6
{[%clk 0:02:20]} 19... Nc4 {[%clk 0:01:58.1]} 20. Rc7 {[%clk 0:02:02.4]} 20...
Bxf3 {[%clk 0:01:56]} 21. gxf3 {[%clk 0:01:47.8]} 21... Nxb6 {[%clk 0:01:37]}
22. Rxc3 {[%clk 0:01:46.9]} 22... f5 {[%clk 0:01:37.6]} 23. Rb1 {[%clk
0:01:41.7]} 23... Nd7 {[%clk 0:01:36]} 24. Rb7 {[%clk 0:01:40]} 24... Nf6 {[%clk
0:01:35.4]} 25. Rcc7 {[%clk 0:01:39.5]} 25... Bh6 {[%clk 0:01:32.8]} 26. exf5
{[%clk 0:01:36.9]} 26... gxf5 {[%clk 0:01:31.8]} 27. d6 {[%clk 0:01:37.2]} 27...
Nd5 {[%clk 0:01:28.2]} 28. Bc4 {[%clk 0:01:36.9]} 1-0